Cogmind - Beta 16 @@@ ROGUE MODE // 2026.01.11 @ 04:31:24 Player: Legato Result: Destroyed by H-77 Assassin with Coil Gun Performance ------------- Evolutions (7) 3500 Regions Visited (12) 2400 Robots Destroyed (97) 485 Value Destroyed (2842) 2842 Prototype IDs (37) 740 Alien Tech Used (0) 0 Bonus (823) 823 TOTAL SCORE: 10790 Bonus ------- Triggered Max Security 1000 Follower Combat Kills 153 Aligned with FarCom 300 Friendly Fire -630 Cogmind --------- Core Integrity 0/1300 Matter 281/300 Energy 98/100 System Corruption 13% Temperature Cool (0) Movement Core (50) Location -3/Testing Parts ------- > --- POWER (2) -------- (None) > --- PROPULSION (7) --- (None) > --- UTILITY (8) ------ (None) > --- WEAPON (4) ------- (None) > --- INVENTORY (5) ---- Micro Antimatter Reactor Hacking Suite Peak State ------------ > --- POWER ------------ Compact Particle Reactor > --- PROPULSION ------- Xenon Bombardment Thruster Nuclear Pulse Array Electron Diverter Cooled Impulse Thruster Cooled Impulse Thruster Cooled Impulse Thruster > --- UTILITY ---------- Improved Melee Analysis Suite Advanced Melee Analysis Suite Advanced Melee Analysis Suite Improved Utility Shielding Advanced Powered Armor Advanced Powered Armor Graphene Brace Improved Hacking Suite > --- WEAPON ----------- Shock Maul Lance > --- INVENTORY -------- Improved Deuterium Engine Micro Antimatter Reactor Improved Core Shielding Hacking Suite [Rating: 120] Favorites ----------- Power Light Ion Engine Engine Light Ion Engine Power Core Micro Nuclear Core Reactor Compact Particle Reactor Propulsion Aluminum Leg Treads Light Treads Leg Aluminum Leg Flight Unit Improved VTOL Module Utility Advanced Melee Analysis Suite Device Power Amplifier Storage Small Storage Unit Processor Advanced Melee Analysis Suite Hackware Hacking Suite Protection Power Shielding Weapon Shock Maul Energy Cannon Beam Cannon Ballistic Gun Light Assault Rifle Launcher Smartbomb Launcher Special Weapon Field Lobotomy Kit Impact Weapon Shock Maul Slashing Weapon Scythe Piercing Weapon Lance Build | -11 -10 -10 -10 -9 -8 -7 -6 -5 -5 -4 -3 -3 ------- Run | Yrd Mat Min Exi Min Mat Fac Fac Fac Ext Fac Res Tes Slots Evolved 14 | . . . . . 4 2 2 2 . 2 2 . Power 1 | . . . . . . . . . . 1 . . Propulsion 5 | . . . . . 2 . 1 1 . . 1 . Utility 6 | . . . . . 2 2 1 . . . 1 . Weapon 2 | . . . . . . . . 1 . 1 . . Parts Attached 119 | 9 6 4 2 . 23 11 19 1 14 9 20 1 Power 12 | 1 1 . . . 3 1 1 . 2 1 2 . Engine 9 | 1 1 . . . 3 . 1 . 2 1 . . Core 1 | . . . . . . 1 . . . . . . Reactor 2 | . . . . . . . . . . . 2 . Propulsion 42 | 4 2 3 . . 11 2 5 . 3 3 8 1 Treads 7 | 2 2 . . . . . . . 3 . . . Leg 12 | 2 . 3 . . 7 . . . . . . . Wheel . | . . . . . . . . . . . . . Hover . | . . . . . . . . . . . . . Flight 23 | . . . . . 4 2 5 . . 3 8 1 Utility 44 | 2 1 . 1 . 6 6 11 . 8 . 9 . Device 5 | 1 . . . . . . 2 . . . 2 . Storage 2 | 1 . . 1 . . . . . . . . . Processor 12 | . . . . . 2 3 6 . . . 1 . Hackware 9 | . . . . . . 3 3 . 1 . 2 . Protection 16 | . 1 . . . 4 . . . 7 . 4 . Artifact . | . . . . . . . . . . . . . Weapon 21 | 2 2 1 1 . 3 2 2 1 1 5 1 . Energy Gun . | . . . . . . . . . . . . . Energy Cannon 2 | . 1 . . . 1 . . . . . . . Ballistic Gun 3 | 2 1 . . . . . . . . . . . Ballistic Cannon . | . . . . . . . . . . . . . Launcher 1 | . . . . . . . . . . 1 . . Special Weapon 1 | . . . 1 . . . . . . . . . Impact Weapon 5 | . . 1 . . . . 1 . . 3 . . Slashing Weapon 8 | . . . . . 2 2 1 1 1 1 . . Piercing Weapon 1 | . . . . . . . . . . . 1 . Special Melee Weapon . | . . . . . . . . . . . . . Unidentified Prototypes 9 | . . . . . 1 1 . 1 . 1 4 1 Corrupted Parts 2 | . . . . . 1 . . . . . 1 . System Corruption 13 | . . . . . 3 . . . . . 10 . Parts Lost 49 | . 3 1 . . 12 4 1 . 11 . 16 1 Power 5 | . 1 . . . 1 . . . 2 . 1 . Propulsion 25 | . 1 . . . 8 1 1 . 5 . 8 1 Utility 14 | . 1 . . . 2 3 . . 3 . 5 . Weapon 5 | . . 1 . . 1 . . . 1 . 2 . Highest Loss Streak 10 | . 2 1 . . 3 2 1 . 10 . 7 1 To Critical Strikes 1 | . . . . . . . . . . . 1 . Average Backups 5 | 2 7 7 7 8 8 4 4 5 4 3 3 2 Power 2 | 1 2 2 2 2 3 3 2 2 1 . 1 1 Propulsion 1 | 1 3 4 4 4 1 . 1 . . . . . Utility 1 | . 1 1 1 1 2 1 . 3 2 1 1 1 Weapon . | . . . . 1 . . . . . . . . Tool/Special . | . . . . . . . . . . . . . Unused Backups 11 | . . . 1 . 3 1 1 . . 3 . 2 Power 3 | . . . . . . 1 1 . . . . 1 Propulsion . | . . . . . . . . . . . . . Utility 7 | . . . 1 . 3 . . . . 2 . 1 Weapon 1 | . . . . . . . . . . 1 . . Tool/Special . | . . . . . . . . . . . . . Average Slot Usage (%) 84 | . 93 97 89 85 82 96 98 86 83 76 62 41 Engine 6 | . 13 14 14 14 8 . . 5 4 5 . 2 Core 1 | . . . . . . 6 5 . . . . . Treads 3 | . 27 15 . . . . . . 1 . . . Leg 9 | . . 12 28 28 27 . . . . . . . Flight 12 | . . . . . 3 29 33 29 24 14 15 10 Device 1 | . 8 . . . . . 5 . . . 2 2 Storage 5 | . 14 14 14 14 8 . . . . . . . Processor 11 | . . . . . 3 18 25 29 25 15 14 9 Hackware 3 | . . . . . . 15 13 11 5 . 2 2 Protection 11 | . . 14 14 14 19 7 . . 6 21 14 6 Energy Cannon 1 | . 3 14 4 . 1 . . . . . . . Ballistic Gun 2 | . 24 10 . . . . . . . . . . Special Weapon 1 | . . . 9 14 1 . . . . . . . Impact Weapon 4 | . . 1 4 . 7 1 1 3 . 12 4 2 Slashing Weapon 4 | . . . . . 2 13 11 6 11 6 1 . Peak Build Rating 120 | 7 8 8 16 15 34 46 67 70 70 100 120 73 Average Rating 43 | 5 7 7 13 15 18 43 59 66 63 95 93 40 On Entrance 37 | . 7 8 7 15 15 34 40 67 70 52 95 73 Avg Prop Armor Cover (%) 1 | . . . . . . . . . 1 . . . Naked Turns 13 | . . . . . . . . . . . . 13 Heaviest Build 49 | 14 14 14 22 17 30 15 16 16 40 43 49 21 Greatest Support 59 | 40 40 40 20 20 40 20 27 29 46 51 59 21 Greatest Overweight (x) 3 | 2 . 1 1 . 3 . . . 2 1 1 . Average Overweight (x) . | . . . . . . . . . . . . . Largest Inventory Capacity 10 | 8 8 8 10 8 10 5 5 5 5 5 5 5 Average Capacity 6 | 6 8 8 8 8 9 5 5 5 5 5 5 5 Most Carried 10 | 5 8 8 8 8 10 5 5 5 5 5 5 3 Average Carried 5 | 2 7 7 7 8 8 4 4 5 3 4 3 2 Final Capacity 8 | 8 8 8 8 8 5 5 5 5 5 5 5 5 Final Carried 8 | 5 8 7 8 8 5 5 5 5 1 5 2 2 Class Distribution -------------------- 44% | Mutant 19% | Hacker-Sprinter 14% | Scavenger-Gladiator 11% | Sprinter 5% | Scavenger-Mutant 4% | Gladiator Dominant Class ---------------- Mutant | -10/Materials Scavenger-Mutant | -10/Mines Mutant | -10/Exiles Mutant | -9/Mines Mutant | -8/Materials Hacker-Sprinter | -7/Factory Hacker-Sprinter | -6/Factory Hacker-Sprinter | -5/Factory Hacker-Sprinter | -5/Extension Scavenger-Gladiator | -4/Factory Mutant | -3/Research Mutant | -3/Testing Resources | -11 -10 -10 -10 -9 -8 -7 -6 -5 -5 -4 -3 -3 ----------- Run | Yrd Mat Min Exi Min Mat Fac Fac Fac Ext Fac Res Tes Matter Collected 1661 | 310 225 48 . 40 264 91 220 10 96 144 213 . Remotely . | . . . . . . . . . . . . . Salvage Created 4300 | 142 577 166 . . 898 140 687 31 822 203 634 . Parts 179 | 6 36 5 . . 39 5 30 7 23 13 15 . Haulers Intercepted 5 | . 1 . . . 1 . 2 . . 1 . . Recyclers Shooed 1 | . . . . . . . . . 1 . . . Parts Field Recycled . | . . . . . . . . . . . . . Retrieved Matter . | . . . . . . . . . . . . . Parts Self-Destructed . | . . . . . . . . . . . . . Prevented . | . . . . . . . . . . . . . Parts Restored . | . . . . . . . . . . . . . Kills | -11 -10 -10 -10 -9 -8 -7 -6 -5 -5 -4 -3 -3 ------- Run | Yrd Mat Min Exi Min Mat Fac Fac Fac Ext Fac Res Tes Combat Hostiles Destroyed 48 | . 13 4 . . 12 3 3 . 5 . 8 . Melee 24 | . . . . . 6 3 3 . 5 . 7 . Guns 12 | . 12 . . . . . . . . . . . Cannons 4 | . . 3 . . 1 . . . . . . . Classes Destroyed 15 | 2 5 . . . 4 . 1 . 2 . 1 . Worker 9 | . 1 . . . 3 . 3 . . 1 1 . Builder 5 | . . . . . 2 . 1 . 1 . 1 . Tunneler 4 | 2 . . . . 1 . . . . 1 . . Hauler 5 | . 1 . . . 1 . 2 . . 1 . . Recycler 5 | 1 . . . . . . 1 . 2 . 1 . Operator 4 | . . . . . 1 . 1 1 . . 1 . Watcher 14 | . 1 . . . 2 2 1 1 1 2 4 . Swarmer 14 | . 5 . . . . 3 . . . . 6 . Grunt 18 | . 8 4 . . 5 . . . 1 . . . Duelist 1 | . . . . . . . . . . . 1 . Sentry 11 | . . . . . 6 . 2 . 3 . . . Hunter 2 | . . . . . 2 . . . . . . . Programmer 2 | . . . . . . . 1 . . . 1 . Behemoth 1 | . . . . . . . . . 1 . . . Wasp 1 | . . . . . . . 1 . . . . . Savage 1 | . . . . . . . . . 1 . . . Best Kill Streak 5 | 2 3 2 . . 5 4 2 2 2 2 3 . Combat Bots Only 4 | . 3 2 . . 4 3 1 . 1 . 2 . Max Kills in Single Turn 1 | 1 1 1 . . 1 1 1 1 1 1 1 . Gunslinging . | . . . . . . . . . . . . . Exploded . | . . . . . . . . . . . . . Melee 1 | . . . . . 1 1 1 . 1 . 1 . Uniques/NPCs Destroyed . | . . . . . . . . . . . . . Combat | -11 -10 -10 -10 -9 -8 -7 -6 -5 -5 -4 -3 -3 -------- Run | Yrd Mat Min Exi Min Mat Fac Fac Fac Ext Fac Res Tes Hostile Shots Fired 781 | . 81 26 . . 168 66 37 . 110 14 221 58 Missed 289 | . 19 4 . . 48 27 23 . 36 7 97 28 Hits 492 | . 62 22 . . 120 39 14 . 74 7 124 30 Melee 5 | . . . . . . . . . . . 5 . Projectile 487 | . 62 22 . . 120 39 14 . 74 7 119 30 AOE 1 | . . . . . . . . . . . 1 . Critical Strikes 25 | . 1 1 . . 11 2 . . 2 . 7 1 Actively Blocked 5 | . . . . . 3 . . . . . 2 . Damage Taken 9616 | . 637 280 . . 2070 547 144 . 1703 209 3340 686 Core 2772 | . 117 122 . . 492 83 68 . 560 18 663 649 Absorbed by Shields 119 | . . . . . . . . . 119 . . . Redirected to Shielding 444 | . . 3 . . 144 . . . 56 . 241 . Ignored by Resistances 32 | . . . . . . . . . . 14 18 . Regen/Repaired (Parts) 108 | . . . . . 61 . 47 . . . . . Core Remaining (%) 62 | 100 . . . 4 10 88 92 . 44 98 . . Volleys Fired 96 | 13 56 19 . . 8 . . . . . . . Largest 2 | 2 2 2 . . 1 . . . . . . . Hottest 80 | 40 80 80 . . 60 . . . . . . . Shots Fired 166 | 18 112 28 . . 8 . . . . . . . Gun 122 | 18 95 9 . . . . . . . . . . Cannon 39 | . 17 19 . . 3 . . . . . . . Launcher . | . . . . . . . . . . . . . Special 5 | . . . . . 5 . . . . . . . Kinetic 122 | 18 95 9 . . . . . . . . . . Thermal 39 | . 17 19 . . 3 . . . . . . . Explosive . | . . . . . . . . . . . . . Electromagnetic . | . . . . . . . . . . . . . Robot Hit Streak 16 | 6 16 8 . . 3 . . . . . . . Robot Miss Streak 4 | 1 4 2 . . 2 . . . . . . . Penetration Max . | . . . . . . . . . . . . . Secondary Targets 2 | . 2 . . . . . . . . . . . Max Gunslinging Chain 1 | . 1 . . . . . . . . . . . Shots Hit Robots 286 | 13 74 20 . . 55 20 28 2 32 8 34 . Core Hits 98 | 5 27 7 . . 16 3 11 2 13 5 9 . Critical Kills 5 | . 1 1 . . 1 . . . . . 2 . Critical Parts Destroyed 15 | . . . . . 8 . . . . . 7 . Critical Strikes 36 | . 1 1 . . 10 2 2 . 9 . 11 . Meltdown 2 | . 1 1 . . . . . . . . . . Smash 18 | . . . . . 9 . . . . . 9 . Sever 16 | . . . . . 1 2 2 . 9 . 2 . Melee Attacks 377 | . . . . . 75 45 81 5 49 48 74 . Impact 128 | . . . . . 60 1 . . . 14 53 . Slashing 246 | . . . . . 15 44 81 5 49 34 18 . Piercing 3 | . . . . . . . . . . . 3 . Sneak Attacks 41 | . . . . . 15 . 12 . 6 4 4 . Combat Hostiles 2 | . . . . . . . 1 . . . 1 . Follow-up Attacks 15 | . . . . . 3 4 . . 3 . 5 . Damage Inflicted 10020 | 149 861 306 . . 1659 756 1480 159 1910 535 2205 . Guns 807 | 149 617 41 . . . . . . . . . . Cannons 556 | . 243 265 . . 48 . . . . . . . Explosions . | . . . . . . . . . . . . . Melee 8656 | . . . . . 1611 756 1480 159 1910 535 2205 . Ramming 1 | . 1 . . . . . . . . . . . Kinetic 807 | 149 617 41 . . . . . . . . . . Thermal 556 | . 243 265 . . 48 . . . . . . . Explosive . | . . . . . . . . . . . . . Electromagnetic . | . . . . . . . . . . . . . Impact 2745 | . . . . . 1063 . . . . . 1682 . Slashing 5875 | . . . . . 548 756 1480 159 1910 535 487 . Piercing 36 | . . . . . . . . . . . 36 . Highest Corruption 13 | . . . . . 9 . . . . . 13 13 Average Corruption 4 | . . . . . 7 . . . . . 1 13 Corruption Purged . | . . . . . . . . . . . . . Corruption Blocked . | . . . . . . . . . . . . . Effects 18 | . . . . . 9 . . . . . 5 4 Message Errors 4 | . . . . . 4 . . . . . . . Matter Fused 3 | . . . . . . . . . . . 2 1 Heat Flow Errors 2 | . . . . . 1 . . . . . 1 . Energy Discharges 1 | . . . . . 1 . . . . . . . Parts Rejected 2 | . . . . . 1 . . . . . . 1 Alerts 3 | . . . . . 2 . . . . . 1 . Misdirections 3 | . . . . . . . . . . . 1 2 Overload Shots . | . . . . . . . . . . . . . Overflow Damage 1721 | . 2 . . . 255 116 253 . 187 139 769 . Projectiles 2 | . 2 . . . . . . . . . . . Explosions . | . . . . . . . . . . . . . Melee 1719 | . . . . . 255 116 253 . 187 139 769 . Knockbacks 9 | . . . . . 2 . . . . . 7 . Impact 9 | . . . . . 2 . . . . . 7 . Kinetic . | . . . . . . . . . . . . . Secondary . | . . . . . . . . . . . . . Self-Inflicted Damage . | . . . . . . . . . . . . . Shots . | . . . . . . . . . . . . . Rammed 3 | . 3 . . . . . . . . . . . Targets Rammed 4 | . 4 . . . . . . . . . . . Kicked . | . . . . . . . . . . . . . Crushed 1 | . 1 . . . . . . . . . . . Highest Temperature 281 | . 223 281 . . 268 12 . . 8 . 188 . Average Temperature 87 | . 64 142 . . 69 9 . . 5 . 65 . Received Heat Transfer 1733 | . 267 174 . . 792 30 12 . 301 21 54 82 Siege Activations . | . . . . . . . . . . . . . Martial Activations . | . . . . . . . . . . . . . Shielding Activations . | . . . . . . . . . . . . . Robots Disrupted . | . . . . . . . . . . . . . Combat Hostiles . | . . . . . . . . . . . . . Robots Corrupted 12 | . . . . . 8 . . . . . 4 . Combat Hostiles 6 | . . . . . 5 . . . . . 1 . Parts Fried 24 | . . . . . 14 . . . . . 10 . Impact Corruptions 37 | . . . . . 16 . . . . . 21 . Robots Melted 2 | . 1 1 . . . . . . . . . . Combat Hostiles 2 | . 1 1 . . . . . . . . . . Parts Melted 3 | . 1 2 . . . . . . . . . . Heat Transferred 1147 | . 518 555 . . 74 . . . . . . . Parts Sabotaged . | . . . . . . . . . . . . . Parts Stolen . | . . . . . . . . . . . . . Parts Stripped . | . . . . . . . . . . . . . Power Chain Reactions . | . . . . . . . . . . . . . Alert | -11 -10 -10 -10 -9 -8 -7 -6 -5 -5 -4 -3 -3 ------- Run | Yrd Mat Min Exi Min Mat Fac Fac Fac Ext Fac Res Tes Maximum Alert Level 5 | . 1 . . . . . . . . . 1 5 Low Security (%) 96 | 100 98 100 . 100 100 100 100 100 100 100 82 2 Level 1 2 | . 1 . . . . . . . . . 17 . Level 2 . | . . . . . . . . . . . . . Level 3 . | . . . . . . . . . . . . . Level 4 . | . . . . . . . . . . . . . Level 5 . | . . . . . . . . . . . . . High Security . | . . . . . . . . . . . . . Max Security . | . . . . . . . . . . . . 97 Peak Influence 1600 | 10 203 75 . . 100 61 124 82 82 45 264 1600 Initial 112 | . . 75 . . . 23 20 60 35 38 18 112 Average 64 | . 110 54 . . 30 28 30 67 33 17 142 1561 Influence Increases 2915 | 15 433 100 . . 479 225 353 32 347 236 695 . Destroy 0b10 Robot/C 1040 | . 260 80 . . 240 60 80 . 160 . 160 . Destroy 0b10 Robot/NC 245 | 15 25 . . . 50 10 45 10 25 25 40 . Destroy Leader 270 | . 54 20 . . 96 14 46 2 14 6 18 . Allied During Kill 37 | . . . . . . . . . 37 . . . Successful Hack 284 | . 4 . . . 28 40 53 3 55 69 32 . Disable Machine 180 | . 15 . . . 30 30 45 15 . 30 15 . Destroy Structure 169 | . . . . . 5 11 39 2 26 46 40 . Partial Spotted 150 | . . . . . . 60 . . 15 15 60 . Lose Combat Pursuer 540 | . 75 . . . 30 . 45 . 15 45 330 . Influence Decreases 2813 | 15 238 250 45 . 426 236 271 84 340 280 530 98 Entered New Map 464 | . . 120 45 . . 30 22 64 37 41 17 88 Time Decay 1730 | 15 208 120 . . 301 172 238 20 164 239 253 . Search Patrol Dispatched 100 | . . . . . . . . . . . 100 . Lost Part 443 | . 30 10 . . 120 20 10 . 83 . 160 10 Lost Ally 62 | . . . . . 5 . 1 . 56 . . . Purge Threat 14 | . . . . . . 14 . . . . . . Squads Dispatched 28 | . 3 . . . 4 3 6 2 . 6 4 . Investigation 11 | . 1 . . . 1 2 1 2 . 2 2 . Extermination 5 | . . . . . . . 1 . . 2 2 . Reinforcement 11 | . 2 . . . 2 1 4 . . 2 . . Assault . | . . . . . . . . . . . . . Garrison 1 | . . . . . 1 . . . . . . . Intercept . | . . . . . . . . . . . . . Searches Triggered 1 | . . . . . . . . . . . 1 . Construction Impeded 1 | . . . . . . . 1 . . . . . Haulers Reinforced 2 | . . . . . . . 1 . . 1 . . Active Scanning Responses . | . . . . . . . . . . . . . Cargo Convoy Interrupts . | . . . . . . . . . . . . . Stealth | -11 -10 -10 -10 -9 -8 -7 -6 -5 -5 -4 -3 -3 --------- Run | Yrd Mat Min Exi Min Mat Fac Fac Fac Ext Fac Res Tes Distress Signals 8 | . 2 . . . 3 . . . . . 3 . Communications Jammed . | . . . . . . . . . . . . . Distress Signals . | . . . . . . . . . . . . . Times Spotted 159 | . 27 4 . . 21 11 5 2 11 12 43 23 Peak Tracking Total 23 | . 5 2 . . 5 4 3 1 5 7 9 23 Tactical Retreats 20 | . 5 . . . 1 . 1 . 1 2 10 . Traps | -11 -10 -10 -10 -9 -8 -7 -6 -5 -5 -4 -3 -3 ------- Run | Yrd Mat Min Exi Min Mat Fac Fac Fac Ext Fac Res Tes Traps Triggered 7 | . . . . . 1 1 1 1 . 2 1 . Indirectly . | . . . . . . . . . . . . . Trap Hack Attempts . | . . . . . . . . . . . . . Triggered . | . . . . . . . . . . . . . Disarmed . | . . . . . . . . . . . . . Reprogrammed . | . . . . . . . . . . . . . Reused . | . . . . . . . . . . . . . Traps Extracted . | . . . . . . . . . . . . . Installed . | . . . . . . . . . . . . . Triggered . | . . . . . . . . . . . . . Machines | -11 -10 -10 -10 -9 -8 -7 -6 -5 -5 -4 -3 -3 ---------- Run | Yrd Mat Min Exi Min Mat Fac Fac Fac Ext Fac Res Tes Machines Disabled 13 | . 1 . . . 2 2 3 1 1 2 1 . Max in Single Turn 1 | . 1 . . . 1 1 1 1 . 1 1 . Garrison Access 2 | . . . . . . 1 . . . 1 . . Machines Repaired . | . . . . . . . . . . . . . Machines Dismantled . | . . . . . . . . . . . . . Machines Sabotaged . | . . . . . . . . . . . . . Overloaded Fab Kills . | . . . . . . . . . . . . . Hacking | -11 -10 -10 -10 -9 -8 -7 -6 -5 -5 -4 -3 -3 --------- Run | Yrd Mat Min Exi Min Mat Fac Fac Fac Ext Fac Res Tes Machines Accessed 55 | . 1 . 1 . 5 8 6 3 9 12 10 . Terminals 38 | . 1 . . . 3 5 4 2 8 7 8 . Fabricators 4 | . . . . . . 1 1 . . 2 . . Repair Stations 2 | . . . . . 1 . 1 . . . . . Recycling Units 1 | . . . . . . . . . 1 . . . Scanalyzers 5 | . . . . . . 1 . 1 . 2 1 . Garrison Access 4 | . . . . . 1 1 . . . 1 1 . Total Hacks 124 | . 5 . 1 . 14 16 13 8 20 26 21 . Successful 57 | . 2 . 1 . 7 13 5 3 10 13 3 . Failed 67 | . 3 . . . 7 3 8 5 10 13 18 . Catastrophic 13 | . 1 . . . 1 . 3 . 1 4 3 . Database Lockouts . | . . . . . . . . . . . . . Manual 30 | . 4 . 1 . 7 6 6 1 1 4 . . Terminals 91 | . 5 . . . 9 11 10 5 18 15 18 . Fabricators 5 | . . . . . . 1 1 . . 3 . . Repair Stations 5 | . . . . . 3 . 2 . . . . . Recycling Units 2 | . . . . . . . . . 2 . . . Scanalyzers 15 | . . . . . . 3 . 3 . 7 2 . Garrison Access 5 | . . . . . 2 1 . . . 1 1 . Terminal Hacks 33 | . 1 . 1 . 2 6 2 2 9 7 3 . Record 5 | . . . . . . . . . . 3 2 . Part Schematic 1 | . . . . . . . . . 1 . . . Robot Schematic 1 | . . . . . . . 1 . . . . . Robot Analysis 2 | . 1 . . . . . . . . 1 . . Prototype ID Bank 2 | . . . . . 1 . . . 1 . . . Open Door 7 | . . . . . . . . . 7 . . . Open DSF 3 | . . . . . . . . 1 . 1 1 . Branch Access Points 1 | . . . . . . 1 . . . . . . Terminal Index 2 | . . . . . . . 1 . . 1 . . Scanalyzer Index 1 | . . . . . . 1 . . . . . . Unreport Threat 1 | . . . . . . 1 . . . . . . Locate Traps 1 | . . . . . 1 . . . . . . . Recall Investigation 1 | . . . . . . . . 1 . . . . Registered Prototypes 1 | . . . . . . 1 . . . . . . Zone Layout 3 | . . . . . . 2 . . . 1 . . Proto ID Catalog 1 | . . . 1 . . . . . . . . . Fabricator Hacks 4 | . . . . . . 1 1 . . 2 . . Network Status 3 | . . . . . . 1 1 . . 1 . . Build 1 | . . . . . . . . . . 1 . . Repair Station Hacks 4 | . . . . . 2 . 2 . . . . . Scan Component 2 | . . . . . 1 . 1 . . . . . Repair 2 | . . . . . 1 . 1 . . . . . Recycling Unit Hacks 1 | . . . . . . . . . 1 . . . Retrieve Components 1 | . . . . . . . . . 1 . . . Scanalyzer 7 | . . . . . . 3 . 1 . 3 . . Retrieve Study 7 | . . . . . . 3 . 1 . 3 . . Garrison Access Hacks 2 | . . . . . . 1 . . . 1 . . Seal Access 2 | . . . . . . 1 . . . 1 . . Unauthorized Hacks 6 | . 1 . . . 3 2 . . . . . . Terminals 6 | . 1 . . . 3 2 . . . . . . Botnet 4 | . 1 . . . 1 2 . . . . . . Skim 2 | . . . . . 2 . . . . . . . Fabricators . | . . . . . . . . . . . . . Repair Stations . | . . . . . . . . . . . . . Recycling Units . | . . . . . . . . . . . . . Scanalyzers . | . . . . . . . . . . . . . Garrison Access . | . . . . . . . . . . . . . Data Cores Recovered . | . . . . . . . . . . . . . Used . | . . . . . . . . . . . . . Hacking Detections 41 | . 1 . . . 4 6 5 3 6 7 9 . Full Trace Events 9 | . . . . . . 2 1 2 . 2 2 . Feedback Events . | . . . . . . . . . . . . . Feedback Blocked 1 | . . . . . . . 1 . . . . . Robot Schematics Acquired 1 | . . . . . . . 1 . . . . . Robots Built . | . . . . . . . . . . . . . Authchips . | . . . . . . . . . . . . . Time . | . . . . . . . . . . . . . Total Robot Build Rating . | . . . . . . . . . . . . . Part Schematics Acquired 1 | . . . . . . . . . 1 . . . Parts Built 2 | . . . . . . . . . . 2 . . Authchips . | . . . . . . . . . . . . . Time 64 | . . . . . . . . . . 64 . . Total Part Build Rating 16 | . . . . . . . . . . 16 . . Part Studies Acquired 7 | . . . . . . 3 . 1 . 3 . . Parts Repaired 2 | . . . . . 1 . 1 . . . . . Time 60 | . . . . . 38 . 22 . . . . . Parts Recycled . | . . . . . . . . . . . . . Recycled Matter . | . . . . . . . . . . . . . Retrieved Matter . | . . . . . . . . . . . . . Retrieved Components 1 | . . . . . . . . . 1 . . . Parts Scanalyzed . | . . . . . . . . . . . . . Part Schematics Acquired . | . . . . . . . . . . . . . Parts Damaged . | . . . . . . . . . . . . . Bothacking | -11 -10 -10 -10 -9 -8 -7 -6 -5 -5 -4 -3 -3 ------------ Run | Yrd Mat Min Exi Min Mat Fac Fac Fac Ext Fac Res Tes Used RIF Installer . | . . . . . . . . . . . . . Robots Hacked . | . . . . . . . . . . . . . Non-combat . | . . . . . . . . . . . . . Combat . | . . . . . . . . . . . . . Robot Hacks Applied . | . . . . . . . . . . . . . Relay Couplers Released 1 | . . . . . . . 1 . . . . . Machine Destruction 1 | . . . . . . . 1 . . . . . Fabnet Peak Effective % . | . . . . . . . . . . . . . Robots Rewired . | . . . . . . . . . . . . . Allies Hacked . | . . . . . . . . . . . . . Hacks Repelled . | . . . . . . . . . . . . . Allies | -11 -10 -10 -10 -9 -8 -7 -6 -5 -5 -4 -3 -3 -------- Run | Yrd Mat Min Exi Min Mat Fac Fac Fac Ext Fac Res Tes Total Allies 21 | . . . . . 2 . 12 . 7 . . . Largest Group 8 | . . . . . 2 . 8 . 4 2 . . Highest-Rated Group 232 | . . . . . 28 . 185 . 232 158 . . Highest-Rated Ally 159 | . . . . . 15 . 31 . 159 138 . . Total Orders . | . . . . . . . . . . . . . Ally Attacks 48 | . . . . . . . 12 . 36 . . . Total Damage 946 | . . . . . . . 158 . 788 . . . Kills 6 | . . . . . . . 1 . 5 . . . Allies Corrupted . | . . . . . . . . . . . . . Allies Melted . | . . . . . . . . . . . . . Field Lobotomies 2 | . . . . . 2 . . . . . . . Intel | -11 -10 -10 -10 -9 -8 -7 -6 -5 -5 -4 -3 -3 ------- Run | Yrd Mat Min Exi Min Mat Fac Fac Fac Ext Fac Res Tes Active Infowar (turns) 769 | 96 313 . . . . 156 204 . . . . . Optics 360 | . . . . . . 156 204 . . . . . Seismic 409 | 96 313 . . . . . . . . . . . ECM 2 | . . . . . . . 2 . . . . . Robot Analysis Total 2 | . 1 . . . . . . . . 1 . . Derelict Logs Recovered 1 | . . 1 . . . . . . . . . . Drone Launches . | . . . . . . . . . . . . . Drone Recoveries . | . . . . . . . . . . . . . Exploration | -11 -10 -10 -10 -9 -8 -7 -6 -5 -5 -4 -3 -3 ------------- Run | Yrd Mat Min Exi Min Mat Fac Fac Fac Ext Fac Res Tes Turns Passed 5311 | 142 506 252 475 34 1177 407 649 44 379 645 557 44 Spaces Moved 6978 | 68 189 140 372 29 760 943 1413 119 588 1283 950 124 Core 34 | 8 . . . . . . . . 1 . . 25 Treads 323 | 35 189 68 . . . . . . 22 9 . . Legs 1084 | 25 . 72 372 29 586 . . . . . . . Wheels . | . . . . . . . . . . . . . Hover . | . . . . . . . . . . . . . Flight 5537 | . . . . . 174 943 1413 119 565 1274 950 99 Fastest Speed 12 | 50 160 120 120 120 26 26 23 25 21 34 12 30 Average Speed 50 | 138 160 140 125 120 107 26 24 25 30 34 32 34 Slowest Speed 260 | 160 160 190 190 120 260 29 27 25 166 160 95 50 Overloaded Moves 6 | . . . . . . . . . 3 . 3 . Propulsion Burnouts . | . . . . . . . . . . . . . Robots Hopped 40 | . . . . . . 1 2 . 1 7 25 4 Potential Cave-ins 3 | . . . . . 1 . . . . . 2 . Cave-ins Triggered 2 | . . . . . 1 . . . . . 1 . Exploration Rate (%) 32 | 5 42 28 72 13 57 24 36 4 51 26 32 31 Regions Visited 12 Branch Regions 5 Pre-discovered Areas . | . . . . . . . . . . . . . Known Exits Taken . | . . . . . . . . . . . . . Unknown Exits Taken 12 | 1 1 1 1 1 1 1 1 1 1 1 1 . Scrap Searched 2 | . . 1 . 1 . . . . . . . . Spaces Dug 113 | . . . . . 7 10 38 1 13 22 22 . Terrain Destroyed 113 | . . . . . 7 10 38 1 13 22 22 . Melee 113 | . . . . . 7 10 38 1 13 22 22 . Projectile . | . . . . . . . . . . . . . AOE . | . . . . . . . . . . . . . Terrain Rammed . | . . . . . . . . . . . . . Walls Destroyed . | . . . . . . . . . . . . . Machines Disabled . | . . . . . . . . . . . . . Actions | -11 -10 -10 -10 -9 -8 -7 -6 -5 -5 -4 -3 -3 --------- Run | Yrd Mat Min Exi Min Mat Fac Fac Fac Ext Fac Res Tes Total 7993 | 94 289 168 382 28 975 1044 1605 124 714 1414 1034 122 Wait 399 | . 29 5 . . 92 28 89 . 68 74 14 . Move 6895 | 67 188 139 371 28 759 940 1408 118 585 1268 906 118 Hop 31 | . . . . . . 1 2 . 1 7 18 2 Pick Up 38 | 5 3 . 1 . 7 6 6 . 1 6 2 1 Fast Attach 68 | 7 3 . 1 . 16 3 5 1 6 10 16 . Attach 25 | . . 1 . . 8 3 3 . 3 1 5 1 Detach 4 | . . . 1 . . . . . . 2 1 . Swap 45 | 2 3 3 2 . 5 5 13 . 8 1 3 . Drop 46 | . 2 1 3 . 8 6 9 . . 12 5 . Fire 96 | 13 56 19 . . 8 . . . . . . . Melee 325 | . . . . . 72 39 70 5 42 33 64 . Ram . | . . . . . . . . . . . . . Kick . | . . . . . . . . . . . . . Crush 4 | . 4 . . . . . . . . . . . Escape Stasis 13 | . . . . . . 13 . . . . . . Rewire 4 | . 1 . 3 . . . . . . . . . Trap . | . . . . . . . . . . . . . Miscellaneous . | . . . . . . . . . . . . . Route ------- -11/Scrapyard -10/Materials (discovered 3 exits: [*Mat] / [*Min x2]) -10/Mines -10/Exiles -9/Mines -8/Materials -7/Factory (discovered 3 exits: *Fac / Low x2) -6/Factory -5/Factory -5/Extension -4/Factory -3/Research -3/Testing (discovered 1 exit: [*Res]) History --------- Turn | Location | Event 32 | -11/Scrapyard | Discovered new exit (range 15) 143 | -11/Scrapyard | Entered Materials 143 | -10/Materials | Discovered new exit (range 13) 144 | -10/Materials | Met a group of wandering Federalists 228 | -10/Materials | Lost 5 allies 315 | -10/Materials | Build established: Mutant 427 | -10/Materials | Discovered new exit (range 16) 589 | -10/Materials | Discovered new exit (range 14) 649 | -10/Materials | Entered Mines 670 | -10/Mines | Learned Materials security intel 738 | -10/Mines | Core integrity fell below 50% 849 | -10/Mines | Core integrity fell below 20% 895 | -10/Mines | Deemed a non-threat by the Exiles lab entrance 896 | -10/Mines | Discovered new exit (range 5) 901 | -10/Mines | Entered Exiles 930 | -10/Exiles | Met 8R-AWN 951 | -10/Exiles | Met EX-HEX 988 | -10/Exiles | Met EX-BIN 1005 | -10/Exiles | Aligned with FarCom system 1006 | -10/Exiles | Given EX-Vault access code 1033 | -10/Exiles | Opened EX-Vault 1042 | -10/Exiles | Found Field Lobotomy Kit 1067 | -10/Exiles | Warned to stay clear of 0b10 Research branches 1108 | -10/Exiles | Met EX-DEC 1367 | -10/Exiles | Discovered new exit (range 10) 1376 | -10/Exiles | Left Exiles lab with Field Lobotomy Kit 1376 | -10/Exiles | Entered Mines 1405 | -9/Mines | Discovered new exit (range 5) 1410 | -9/Mines | Entered Materials 1410 | -8/Materials | Evolved 4 slots: Propulsion x2, Utility x2 1533 | -8/Materials | Assimilated W-25 Informer with FLK Orb 1542 | -8/Materials | Assimilated Y-45 Defender with FLK Orb 1943 | -8/Materials | Garrison activated, responded to threat 2093 | -8/Materials | Lost 3 parts (2n1u) 2250 | -8/Materials | Crushed by falling debris 2281 | -8/Materials | Lost 3 parts (1n1u1w) 2379 | -8/Materials | Discovered new exit (range 11) 2419 | -8/Materials | Core integrity fell below 50% 2443 | -8/Materials | Core integrity fell below 20% 2469 | -8/Materials | Lost 3 parts (1p2n) 2553 | -8/Materials | Repaired Imp. Power Shielding 2587 | -8/Materials | Entered Factory 2587 | -7/Factory | Evolved 2 slots: Utility x2 2854 | -7/Factory | Identified exit to Lower Caves 2910 | -7/Factory | Build established: Hacker-Sprinter 2986 | -7/Factory | Discovered new exit (range 12) 2994 | -7/Factory | Entered another Factory area 2994 | -6/Factory | Evolved 2 slots: Propulsion x1, Utility x1 3022 | -6/Factory | Repaired Mic. Nuclear Core+ 3629 | -6/Factory | Discovered new exit (range 16) 3643 | -6/Factory | Entered another Factory area 3643 | -5/Factory | Evolved 2 slots: Propulsion x1, Weapon x1 3644 | -5/Factory | Identified exit to DSF 3677 | -5/Factory | Discovered new exit (range 15) 3687 | -5/Factory | Entered Extension 3700 | -5/Extension | Rescued a captive Derelict 3857 | -5/Extension | Rescued a captive Derelict 3858 | -5/Extension | Rescued a captive Derelict 3862 | -5/Extension | Rescued a captive Derelict 3898 | -5/Extension | Rescued a captive Derelict 3917 | -5/Extension | Rescued A7 3919 | -5/Extension | Rescued a captive Derelict 3923 | -5/Extension | Rescued a captive Derelict 3936 | -5/Extension | Spotted B-75 Beast 3977 | -5/Extension | Spotted B-75 Beast 3983 | -5/Extension | Destroyed B-75 Beast 4005 | -5/Extension | Lost 3 allies 4016 | -5/Extension | Core integrity fell below 50% 4023 | -5/Extension | Allies destroyed B-75 Beast 4046 | -5/Extension | Lost 10 parts (2p5n2u1w) 4059 | -5/Extension | Discovered new exit (range 3) 4066 | -5/Extension | Entered Factory 4066 | -4/Factory | Accompanied by 2 allies (A7) 4066 | -4/Factory | Evolved 2 slots: Power x1, Weapon x1 4325 | -4/Factory | Build established: Scavenger-Gladiator 4584 | -4/Factory | Fabricated Adv. Weapon Cycler? 4691 | -4/Factory | Discovered new exit (range 15) 4711 | -4/Factory | Entered Research 4711 | -3/Research | Evolved 2 slots: Propulsion x1, Utility x1 4800 | -3/Research | Crushed by falling debris 4839 | -3/Research | Lost 5 parts (1n2u2w) 4961 | -3/Research | Search patrols dispatched 5097 | -3/Research | Build established: Mutant 5152 | -3/Research | Found Adv. Powered Armor 5161 | -3/Research | Lost 4 parts (2n2u) 5182 | -3/Research | Found Adv. Powered Armor 5246 | -3/Research | System corruption reached 10% 5259 | -3/Research | Spotted B-86 Titan 5264 | -3/Research | Discovered new exit (range 14) 5268 | -3/Research | Entered Testing 5269 | -3/Testing | Maximum security lockdown engaged 5269 | -3/Testing | Core integrity fell below 50% 5287 | -3/Testing | Lost 7 parts (1p5n1u) 5291 | -3/Testing | Released all parts (12) 5303 | -3/Testing | Core integrity fell below 20% 5304 | -3/Testing | Spotted PY-I5ZHE13EHP 5310 | -3/Testing | Discovered new exit (range 16) 5312 | -3/Testing | Destroyed by H-77 Assassin with Coil Gun Last Messages --------------- 05291_ Released Imp. Hacking Suite. 05291_ Released Graphene Brace. 05291_ Released Lance. 05291_ Released Cld. Impulse Thruster. 05291_ Released Imp. Core Shielding. 05291_ Released Imp. Deuterium Engine. 05292_ Critical hit (Burn: +50). 05300_ Penetrated by Slug. 05300_ Slug penetrates Wall. 05300_ Acquired Prototype Flight Unit. 05303_ Identified Diametric Drive. 05304_ PY-I5ZHE13EHP suffers critical hit (Burn). 05305_ Slug penetrates C-55 Analyst. 05305_ Slug penetrates Wall. 05308_ K-01 Serf destroyed. 05310_ EXIT=FOUND 05311_ System corrupted: Diametric Drive rejected. 05312_ Penetrated by Slug. 05312_ Slug penetrates R-10 Processor. 05312_ Penetrated by Slug. Map ----- +----------------------------------------------------+ | | | | | | | | | | | | | | | | | | | | | ?????????????????????????????????????????????????? | | ?????????????????????????????????????????????????? | | ##???????????????????????????????????????????????? | | "#???????????????????????????????????????????????? | | "#######?????????????????????????????????????????? | | # ?????????##??????????????????????????????? | | """# ?????????# """T""????????????????????????? | | """#= """ #????# ??????????????????????? | | """# """ #????# ! ] #?????????????????????? | | """# #????# #?????????????????????? | | """# """ #????# """"" #?????????????????????? | | # """ #????# """"" #?????????????????????? | | # """ #????? """"" ??????????????????????? | | #?? ????????? ????????????????????????? | | #+######+#############+###########???????????????? | | s = @ Y #????????? | | R R u Y Y #????????? | | = ss Y #????????? | | % Y c R ?????????? | | ###"####! ####+#####h ################?????????? | | #???# #????????# h #????????????????????????? | | #???# #????????# #????????????????????????? | | " ?#???#####????????#####????????????????????????? | | " ???????????????????????????????????????????????? | | "????????????????????????????????????????????????? | | "????????????????????????????????????????????????? | | ?????????????????????????????????????????????????? | | ?????????????????????????????????????????????????? | | ?????????????????????????????????????????????????? | | ?????????????????????????????????????????????????? | | ?????????????????????????????????????????????????? | | ?????????????????????????????????????????????????? | | ?????????????????????????????????????????????????? | | ?????????????????????????????????????????????????? | | ?????????????????????????????????????????????????? | | ?????????????????????????????????????????????????? | | ?????????????????????????????????????????????????? | | ?????????????????????????????????????????????????? | | ?????????????????????????????????????????????????? | | ?????????????????????????????????????????????????? | +----------------------------------------------------+ Best States ------------- Heat Dissipation 46 Energy Generation 23 Energy Capacity 455 Matter Stores 300 Matter Capacity 300 Sight Range 18 Terrain Scan Density 10 Power Amplification 20 Armor Coverage 675 Resistance: TH 25 Core Shielding 30 Power Shielding 66 Propulsion Shielding 66 Utility Shielding 66 Evasion (%) 65 Melee Accuracy 40 Recoil Reduction 2 Offensive Hacking 30 Defensive Hacking 10 Item Schematics ----------------- Impulse Thruster Array | -5/Extension | Hacked Robot Schematics ------------------ B-48 Gladiator | -6/Factory | Hacked Fabricated ------------ Adv. Weapon Cycler | x2 | -4/Factory | Preloaded Repaired ---------- Imp. Power Shielding | 39% | -8/Materials Mic. Nuclear Core | 6% | -6/Factory Studied --------- VTOL Module | -7/Factory | Hacked Scythe | -7/Factory | Hacked Mic. Nuclear Core | -7/Factory | Hacked Nuclear Pulse Thruster | -5/Factory | Hacked Field Propulsion Array | -4/Factory | Hacked Nuclear Pulse Array | -4/Factory | Hacked Greatsword | -4/Factory | Hacked Alien Tech Used ----------------- None Achievements -------------- Hornet's Nest Prison Break Challenges ------------ None Game ------ Seed PhasingDrainedFrame Manual? 0 Play Time 01:23:06 Cumulative 52.0 hours Start 2026.01.11 @ 02:50:28 End 2026.01.11 @ 04:31:24 Sessions 3 Manual Loads 0 Difficulty Rogue Special Mode None Game No. 58 Rogue 58 Adventurer 0 Explorer 0 Win Type - Total 1 Types 1/0/0/0/0/0/0/0/0/0 Lore% 41 Gallery% 39 Achievement% 29 Wizard Run 0 Options --------- Layout 0 ASCII 0 Keyboard 0 Movement Arrows Keybinds 1 Fullscreen 1 Font 18/X11 Map View 76x50 Zoom Use 0% Tactical HUD 1 Map Filters NONE Filters NONE Steam 1 RUN: cc0cf537-ebb2-4e4a-a1e9-31c4ca0b855f